[Event "Titled Tuesday Blitz July 26 Late 2022"]
[White "Miszler, Levente"]
[Black "Carrasco Miranda, Andres"]
[WhiteFideId "763276"]
[BlackFideId "3405990"]
[WhiteElo "1966"]
[BlackElo "2177"]
[Result "0-1"]
[Round "10"]
[TimeControl "180+1"]
[Date "2022.07.27"]
[WhiteClock "0:00:04"]
[BlackClock "0:00:06"]

1. Nf3 {[%clk 0:03:00]}  Nf6 {[%clk 0:02:59]} 2. c4 {[%clk 0:02:58]}  g6 {[%clk 0:02:58]} 3. g3 {[%clk 0:02:59]}  Bg7 {[%clk 0:02:58]} 4. Bg2 {[%clk 0:03:00]}  O-O {[%clk 0:02:58]} 5. O-O {[%clk 0:03:01]}  d5 {[%clk 0:02:57]} 6. Qc2 {[%clk 0:03:00]}  Nc6 {[%clk 0:02:56]} 7. a3 {[%clk 0:02:55]}  a5 {[%clk 0:02:54]} 8. d3 {[%clk 0:02:49]}  d4 {[%clk 0:02:51]} 9. Nbd2 {[%clk 0:02:48]}  e5 {[%clk 0:02:50]} 10. b3 {[%clk 0:02:48]}  Re8 {[%clk 0:02:49]} 11. Rb1 {[%clk 0:02:47]}  Qe7 {[%clk 0:02:34]} 12. Ng5 {[%clk 0:02:37]}  h6 {[%clk 0:02:31]} 13. Nge4 {[%clk 0:02:37]}  Nxe4 {[%clk 0:02:31]} 14. Bxe4 {[%clk 0:02:36]}  Kh7 {[%clk 0:02:28]} 15. Qb2 {[%clk 0:02:26]}  Bh3 {[%clk 0:02:26]} 16. Re1 {[%clk 0:02:23]}  f5 {[%clk 0:02:25]} 17. Bg2 {[%clk 0:02:21]}  Bxg2 {[%clk 0:02:21]} 18. Kxg2 {[%clk 0:02:22]}  e4 {[%clk 0:02:21]} 19. dxe4 {[%clk 0:02:20]}  fxe4 {[%clk 0:02:22]} 20. Qc2 {[%clk 0:02:15]}  d3 {[%clk 0:02:16]} 21. Qd1 {[%clk 0:02:11]}  e3 {[%clk 0:01:59]} 22. exd3 {[%clk 0:02:11]}  Qd7 {[%clk 0:01:45]} 23. Ne4 {[%clk 0:01:59]}  exf2 {[%clk 0:01:39]} 24. Nxf2 {[%clk 0:02:00]}  Rxe1 {[%clk 0:01:34]} 25. Qxe1 {[%clk 0:02:01]}  Re8 {[%clk 0:01:34]} 26. Qd1 {[%clk 0:02:01]}  Nd4 {[%clk 0:01:28]} 27. Qg4 {[%clk 0:01:50]}  Qc6+ {[%clk 0:01:23]} 28. Ne4 {[%clk 0:01:50]}  h5 {[%clk 0:01:21]} 29. Qf4 {[%clk 0:01:44]}  g5 {[%clk 0:01:12]} 30. Qe3 {[%clk 0:01:12]}  g4 {[%clk 0:00:48]} 31. Bb2 {[%clk 0:01:11]}  Nf3 {[%clk 0:00:21]} 32. Bxg7 {[%clk 0:01:10]}  Kxg7 {[%clk 0:00:22]} 33. b4 {[%clk 0:01:03]}  axb4 {[%clk 0:00:22]} 34. axb4 {[%clk 0:01:04]}  Ra8 {[%clk 0:00:21]} 35. Rf1 {[%clk 0:00:56]}  Ra2+ {[%clk 0:00:20]} 36. Rf2 {[%clk 0:00:57]}  Ra1 {[%clk 0:00:20]} 37. Rxf3 {[%clk 0:00:54]}  gxf3+ {[%clk 0:00:20]} 38. Qxf3 {[%clk 0:00:54]}  Ra2+ {[%clk 0:00:20]} 39. Kh3 {[%clk 0:00:53]}  Qe6+ {[%clk 0:00:20]} 40. Kh4 {[%clk 0:00:49]}  Rxh2+ {[%clk 0:00:19]} 41. Kg5 {[%clk 0:00:48]}  Qg6+ {[%clk 0:00:14]} 42. Kf4 {[%clk 0:00:46]}  Qf7+ {[%clk 0:00:12]} 43. Ke3 {[%clk 0:00:46]}  Qxf3+ {[%clk 0:00:13]} 44. Kxf3 {[%clk 0:00:47]}  Rb2 {[%clk 0:00:13]} 45. b5 {[%clk 0:00:46]}  Kg6 {[%clk 0:00:13]} 46. Nc5 {[%clk 0:00:44]}  b6 {[%clk 0:00:12]} 47. Ne6 {[%clk 0:00:44]}  Rb3 {[%clk 0:00:12]} 48. Ke4 {[%clk 0:00:42]}  Rb2 {[%clk 0:00:09]} 49. Nxc7 {[%clk 0:00:42]}  Kg5 {[%clk 0:00:10]} 50. d4 {[%clk 0:00:35]}  Kg4 {[%clk 0:00:10]} 51. d5 {[%clk 0:00:36]}  Kxg3 {[%clk 0:00:10]} 52. d6 {[%clk 0:00:36]}  h4 {[%clk 0:00:10]} 53. d7 {[%clk 0:00:36]}  Re2+ {[%clk 0:00:09]} 54. Kf5 {[%clk 0:00:33]}  Rf2+ {[%clk 0:00:09]} 55. Ke6 {[%clk 0:00:31]}  Rf8 {[%clk 0:00:08]} 56. Ne8 {[%clk 0:00:31]}  h3 {[%clk 0:00:09]} 57. d8=Q {[%clk 0:00:31]}  h2 {[%clk 0:00:10]} 58. Qg5+ {[%clk 0:00:26]}  Kf2 {[%clk 0:00:08]} 59. Qh4+ {[%clk 0:00:23]}  Kg2 {[%clk 0:00:07]} 60. Qg4+ {[%clk 0:00:22]}  Kh1 {[%clk 0:00:06]} 61. Ke7 {[%clk 0:00:17]}  Rxe8+ {[%clk 0:00:06]} 62. Kd7 {[%clk 0:00:11]}  Rd8+ {[%clk 0:00:06]} 63. Kc7 {[%clk 0:00:10]}  Rg8 {[%clk 0:00:05]} 64. Qf3+ {[%clk 0:00:09]}  Kg1 {[%clk 0:00:05]} 65. Kxb6 {[%clk 0:00:08]}  h1=Q {[%clk 0:00:05]} 66. Qxh1+ {[%clk 0:00:07]}  Kxh1 {[%clk 0:00:05]} 67. c5 {[%clk 0:00:08]}  Kg2 {[%clk 0:00:06]} 68. c6 {[%clk 0:00:08]}  Kf3 {[%clk 0:00:06]} 69. c7 {[%clk 0:00:09]}  Ke4 {[%clk 0:00:06]} 70. Kb7 {[%clk 0:00:08]}  Kd5 {[%clk 0:00:07]} 71. b6 {[%clk 0:00:07]}  Kc5 {[%clk 0:00:07]} 72. Ka7 {[%clk 0:00:07]}  Kc6 {[%clk 0:00:06]} 73. b7 {[%clk 0:00:02]}  Kxc7 {[%clk 0:00:06]} 74. Ka6 {[%clk 0:00:02]}  Rb8 {[%clk 0:00:06]} 75. Ka7 {[%clk 0:00:03]}  Rxb7+ {[%clk 0:00:07]} 76. Ka8 {[%clk 0:00:04]}  Rb6 {[%clk 0:00:06]} 0-1


[Site "https://www.chess.com"]

[Event "Titled Tuesday Blitz July 26 Late 2022"]
[White "Nagy, Gabor"]
[Black "Bortnyk, Olexandr"]
[WhiteFideId "737119"]
[BlackFideId "14120828"]
[WhiteElo "2530"]
[BlackElo "2723"]
[Result "0-1"]
[Round "10"]
[TimeControl "180+1"]
[Date "2022.07.26"]
[WhiteClock "0:00:06"]
[BlackClock "0:00:05"]

1. Nf3 {[%clk 0:02:45]}  d6 {[%clk 0:03:00]} 2. g3 {[%clk 0:02:45]}  e5 {[%clk 0:03:00]} 3. Bg2 {[%clk 0:02:46]}  e4 {[%clk 0:03:00]} 4. Nd4 {[%clk 0:02:46]}  c5 {[%clk 0:03:00]} 5. Nb3 {[%clk 0:02:46]}  Nf6 {[%clk 0:03:01]} 6. d3 {[%clk 0:02:47]}  exd3 {[%clk 0:02:59]} 7. cxd3 {[%clk 0:02:47]}  Nc6 {[%clk 0:02:59]} 8. Nc3 {[%clk 0:02:47]}  Be7 {[%clk 0:02:58]} 9. O-O {[%clk 0:02:47]}  h5 {[%clk 0:02:59]} 10. h4 {[%clk 0:02:45]}  Bg4 {[%clk 0:02:59]} 11. Bg5 {[%clk 0:02:44]}  Qd7 {[%clk 0:02:59]} 12. d4 {[%clk 0:02:43]}  cxd4 {[%clk 0:02:55]} 13. Nxd4 {[%clk 0:02:42]}  Bh3 {[%clk 0:02:53]} 14. Bxh3 {[%clk 0:02:35]}  Qxh3 {[%clk 0:02:54]} 15. Bxf6 {[%clk 0:02:36]}  gxf6 {[%clk 0:02:49]} 16. Nf3 {[%clk 0:02:33]}  Rg8 {[%clk 0:02:47]} 17. Nd5 {[%clk 0:02:19]}  O-O-O {[%clk 0:02:42]} 18. Nf4 {[%clk 0:02:14]}  Qf5 {[%clk 0:02:31]} 19. e3 {[%clk 0:02:13]}  Ne5 {[%clk 0:02:20]} 20. Nd4 {[%clk 0:02:10]}  Qe4 {[%clk 0:02:19]} 21. Qc2+ {[%clk 0:02:05]}  Qxc2 {[%clk 0:02:19]} 22. Nxc2 {[%clk 0:02:06]}  Nf3+ {[%clk 0:02:18]} 23. Kh1 {[%clk 0:02:03]}  f5 {[%clk 0:02:15]} 24. Rac1 {[%clk 0:02:01]}  Kd7 {[%clk 0:02:15]} 25. Rfd1 {[%clk 0:01:56]}  Bf6 {[%clk 0:01:55]} 26. Nd5 {[%clk 0:01:31]}  Bh8 {[%clk 0:01:41]} 27. Ncb4 {[%clk 0:01:25]}  Rc8 {[%clk 0:01:39]} 28. Nd3 {[%clk 0:01:20]}  Ne5 {[%clk 0:01:32]} 29. N3f4 {[%clk 0:01:15]}  Ng4 {[%clk 0:01:30]} 30. Kg2 {[%clk 0:01:15]}  Bxb2 {[%clk 0:01:28]} 31. Rb1 {[%clk 0:01:00]}  Rc2 {[%clk 0:01:27]} 32. Nd3 {[%clk 0:01:00]}  Be5 {[%clk 0:01:15]} 33. Rxb7+ {[%clk 0:00:59]}  Kc8 {[%clk 0:00:55]} 34. Rxf7 {[%clk 0:00:48]}  Nxf2 {[%clk 0:00:47]} 35. Rc1 {[%clk 0:00:15]}  Rxg3+ {[%clk 0:00:47]} 36. Kf1 {[%clk 0:00:15]}  Rxc1+ {[%clk 0:00:43]} 37. Nxc1 {[%clk 0:00:16]}  Ng4 {[%clk 0:00:36]} 38. Ne7+ {[%clk 0:00:15]}  Kd8 {[%clk 0:00:35]} 39. Nxf5 {[%clk 0:00:16]}  Rf3+ {[%clk 0:00:28]} 40. Ke2 {[%clk 0:00:17]}  Rf2+ {[%clk 0:00:28]} 41. Kd3 {[%clk 0:00:17]}  Ke8 {[%clk 0:00:25]} 42. Nxd6+ {[%clk 0:00:12]}  Bxd6 {[%clk 0:00:24]} 43. Rxa7 {[%clk 0:00:13]}  Be7 {[%clk 0:00:20]} 44. Nb3 {[%clk 0:00:12]}  Rf3 {[%clk 0:00:17]} 45. Nd4 {[%clk 0:00:12]}  Rxe3+ {[%clk 0:00:17]} 46. Kc4 {[%clk 0:00:13]}  Re4 {[%clk 0:00:12]} 47. Kd5 {[%clk 0:00:06]}  Nf6+ {[%clk 0:00:08]} 48. Kc4 {[%clk 0:00:07]}  Nd7 {[%clk 0:00:07]} 49. Ra8+ {[%clk 0:00:05]}  Kf7 {[%clk 0:00:07]} 50. Kd3 {[%clk 0:00:06]}  Rxh4 {[%clk 0:00:04]} 51. Nf5 {[%clk 0:00:06]}  Rh3+ {[%clk 0:00:04]} 52. Kc4 {[%clk 0:00:05]}  Nb6+ {[%clk 0:00:04]} 53. Kb5 {[%clk 0:00:06]}  Nxa8 {[%clk 0:00:05]} 0-1


[Site "https://www.chess.com"]

[Event "Titled Tuesday Blitz July 26 Late 2022"]
[White "Nazaretyan, Tigran"]
[Black "Ernst, Sipke"]
[WhiteFideId "24162345"]
[BlackFideId "1004689"]
[WhiteElo "2179"]
[BlackElo "2436"]
[Result "0-1"]
[Round "10"]
[TimeControl "180+1"]
[Date "2022.07.26"]
[WhiteClock "0:00:05"]
[BlackClock "0:01:05"]

1. d4 {[%clk 0:02:59]}  Nf6 {[%clk 0:02:59]} 2. c4 {[%clk 0:02:58]}  g6 {[%clk 0:02:56]} 3. Nc3 {[%clk 0:02:58]}  Bg7 {[%clk 0:02:56]} 4. e4 {[%clk 0:02:58]}  O-O {[%clk 0:02:57]} 5. Nf3 {[%clk 0:02:58]}  d6 {[%clk 0:02:57]} 6. Be2 {[%clk 0:02:58]}  e5 {[%clk 0:02:56]} 7. O-O {[%clk 0:02:58]}  Bg4 {[%clk 0:02:56]} 8. d5 {[%clk 0:02:42]}  a5 {[%clk 0:02:53]} 9. Ne1 {[%clk 0:02:40]}  Bd7 {[%clk 0:02:44]} 10. Nd3 {[%clk 0:02:39]}  Na6 {[%clk 0:02:43]} 11. Be3 {[%clk 0:02:39]}  b6 {[%clk 0:02:43]} 12. a3 {[%clk 0:02:38]}  Nc5 {[%clk 0:02:42]} 13. f3 {[%clk 0:02:33]}  a4 {[%clk 0:02:42]} 14. Nb4 {[%clk 0:02:07]}  Nh5 {[%clk 0:02:41]} 15. Rc1 {[%clk 0:02:01]}  Nf4 {[%clk 0:02:38]} 16. Nc6 {[%clk 0:01:57]}  Qg5 {[%clk 0:02:36]} 17. Bxf4 {[%clk 0:01:46]}  exf4 {[%clk 0:02:36]} 18. Nb5 {[%clk 0:01:36]}  Rac8 {[%clk 0:02:24]} 19. Nca7 {[%clk 0:01:30]}  Ra8 {[%clk 0:02:13]} 20. Rc2 {[%clk 0:01:28]}  Nb3 {[%clk 0:02:05]} 21. Nc6 {[%clk 0:01:25]}  Bxc6 {[%clk 0:01:59]} 22. dxc6 {[%clk 0:01:24]}  Qe7 {[%clk 0:02:00]} 23. Kh1 {[%clk 0:01:12]}  Be5 {[%clk 0:02:00]} 24. Qd3 {[%clk 0:01:05]}  Nc5 {[%clk 0:01:58]} 25. Qd5 {[%clk 0:01:04]}  Kg7 {[%clk 0:01:57]} 26. Bd3 {[%clk 0:01:01]}  h5 {[%clk 0:01:57]} 27. g3 {[%clk 0:00:54]}  fxg3 {[%clk 0:01:51]} 28. f4 {[%clk 0:00:53]}  Bf6 {[%clk 0:01:49]} 29. Rg2 {[%clk 0:00:46]}  h4 {[%clk 0:01:47]} 30. hxg3 {[%clk 0:00:46]}  hxg3 {[%clk 0:01:47]} 31. Rxg3 {[%clk 0:00:46]}  Bxb2 {[%clk 0:01:43]} 32. Rfg1 {[%clk 0:00:37]}  Rh8+ {[%clk 0:01:42]} 33. Kg2 {[%clk 0:00:37]}  Qh4 {[%clk 0:01:41]} 34. e5 {[%clk 0:00:30]}  Qxf4 {[%clk 0:01:31]} 35. Rf1 {[%clk 0:00:19]}  Nxd3 {[%clk 0:01:25]} 36. Qxd3 {[%clk 0:00:13]}  Qxe5 {[%clk 0:01:24]} 37. Nxc7 {[%clk 0:00:11]}  Raf8 {[%clk 0:01:15]} 38. Nd5 {[%clk 0:00:10]}  Rh6 {[%clk 0:01:13]} 39. c7 {[%clk 0:00:09]}  Bd4 {[%clk 0:01:12]} 40. Rf4 {[%clk 0:00:06]}  Bc5 {[%clk 0:01:10]} 41. Re4 {[%clk 0:00:06]}  Qh5 {[%clk 0:01:07]} 42. Rh3 {[%clk 0:00:06]}  Qg5+ {[%clk 0:01:06]} 43. Rg3 {[%clk 0:00:06]}  Qc1 {[%clk 0:01:06]} 44. Qf3 {[%clk 0:00:05]}  Qh1# {[%clk 0:01:05]} 0-1


[Site "https://www.chess.com"]

[Event "Titled Tuesday Blitz July 26 Late 2022"]
[White "Prydun, Andriy"]
[Black "Janaszak, Dawid"]
[WhiteFideId "14145898"]
[BlackFideId "1119206"]
[WhiteElo "2063"]
[BlackElo "2199"]
[Result "0-1"]
[Round "10"]
[TimeControl "180+1"]
[Date "2022.07.26"]
[WhiteClock "0:00:05"]
[BlackClock "0:00:08"]

1. e4 {[%clk 0:03:00]}  e5 {[%clk 0:02:59]} 2. d4 {[%clk 0:02:59]}  exd4 {[%clk 0:02:59]} 3. Qxd4 {[%clk 0:03:00]}  Nc6 {[%clk 0:02:58]} 4. Qc4 {[%clk 0:03:01]}  d5 {[%clk 0:02:58]} 5. exd5 {[%clk 0:03:00]}  Nb4 {[%clk 0:02:56]} 6. Bd2 {[%clk 0:02:43]}  Qxd5 {[%clk 0:02:37]} 7. Qxd5 {[%clk 0:02:19]}  Nxd5 {[%clk 0:02:38]} 8. Nc3 {[%clk 0:02:16]}  Be6 {[%clk 0:02:35]} 9. Bc4 {[%clk 0:01:57]}  O-O-O {[%clk 0:02:29]} 10. Nxd5 {[%clk 0:01:56]}  Bxd5 {[%clk 0:02:30]} 11. Bxd5 {[%clk 0:01:57]}  Rxd5 {[%clk 0:02:30]} 12. Nf3 {[%clk 0:01:58]}  Bc5 {[%clk 0:02:25]} 13. Bc3 {[%clk 0:01:49]}  f6 {[%clk 0:02:21]} 14. Rd1 {[%clk 0:01:48]}  Ne7 {[%clk 0:02:20]} 15. O-O {[%clk 0:01:46]}  Rhd8 {[%clk 0:02:18]} 16. Rxd5 {[%clk 0:01:43]}  Nxd5 {[%clk 0:02:19]} 17. Bd2 {[%clk 0:01:41]}  Nb6 {[%clk 0:02:17]} 18. b3 {[%clk 0:01:40]}  Kd7 {[%clk 0:02:08]} 19. Re1 {[%clk 0:01:36]}  Nc8 {[%clk 0:02:03]} 20. Kf1 {[%clk 0:01:33]}  Nd6 {[%clk 0:02:03]} 21. a4 {[%clk 0:01:26]}  a6 {[%clk 0:01:58]} 22. Bc3 {[%clk 0:01:17]}  Re8 {[%clk 0:01:55]} 23. Rd1 {[%clk 0:01:16]}  Kc6 {[%clk 0:01:49]} 24. Nd4+ {[%clk 0:01:15]}  Bxd4 {[%clk 0:01:46]} 25. Bxd4 {[%clk 0:01:16]}  Nf5 {[%clk 0:01:45]} 26. Bc3 {[%clk 0:01:14]}  h5 {[%clk 0:01:40]} 27. h3 {[%clk 0:01:13]}  b5 {[%clk 0:01:34]} 28. axb5+ {[%clk 0:01:09]}  axb5 {[%clk 0:01:35]} 29. Re1 {[%clk 0:00:58]}  Ra8 {[%clk 0:01:31]} 30. Ra1 {[%clk 0:00:46]}  Rd8 {[%clk 0:01:19]} 31. Ra6+ {[%clk 0:00:38]}  Kd5 {[%clk 0:01:08]} 32. Ke2 {[%clk 0:00:35]}  Nd6 {[%clk 0:01:05]} 33. f3 {[%clk 0:00:29]}  h4 {[%clk 0:01:03]} 34. Kd3 {[%clk 0:00:28]}  Nf5 {[%clk 0:00:57]} 35. Ra7 {[%clk 0:00:24]}  Rd7 {[%clk 0:00:57]} 36. Be1 {[%clk 0:00:22]}  Ke6+ {[%clk 0:00:50]} 37. Ke2 {[%clk 0:00:07]}  g5 {[%clk 0:00:51]} 38. Bf2 {[%clk 0:00:06]}  Nd6 {[%clk 0:00:47]} 39. Ra6 {[%clk 0:00:06]}  Ke5 {[%clk 0:00:47]} 40. Ra5 {[%clk 0:00:05]}  c6 {[%clk 0:00:46]} 41. c4 {[%clk 0:00:05]}  Ke6 {[%clk 0:00:44]} 42. Ra6 {[%clk 0:00:06]}  bxc4 {[%clk 0:00:42]} 43. bxc4 {[%clk 0:00:07]}  Rc7 {[%clk 0:00:34]} 44. Kd2 {[%clk 0:00:07]}  Nxc4+ {[%clk 0:00:34]} 45. Kc3 {[%clk 0:00:07]}  Ne5 {[%clk 0:00:34]} 46. Bb6 {[%clk 0:00:06]}  Rc8 {[%clk 0:00:34]} 47. Bd4 {[%clk 0:00:06]}  Ng6 {[%clk 0:00:30]} 48. Be3 {[%clk 0:00:05]}  Ne7 {[%clk 0:00:27]} 49. Ra5 {[%clk 0:00:05]}  Nd5+ {[%clk 0:00:27]} 50. Kd3 {[%clk 0:00:05]}  Rd8 {[%clk 0:00:24]} 51. Ke2 {[%clk 0:00:06]}  Nc3+ {[%clk 0:00:24]} 52. Kf2 {[%clk 0:00:06]}  Nd1+ {[%clk 0:00:22]} 53. Ke2 {[%clk 0:00:06]}  Nc3+ {[%clk 0:00:23]} 54. Kf2 {[%clk 0:00:06]}  Nb5 {[%clk 0:00:23]} 55. Ra6 {[%clk 0:00:06]}  Kd5 {[%clk 0:00:24]} 56. Ra1 {[%clk 0:00:06]}  c5 {[%clk 0:00:23]} 57. Rd1+ {[%clk 0:00:06]}  Nd4 {[%clk 0:00:24]} 58. Ra1 {[%clk 0:00:04]}  Rb8 {[%clk 0:00:23]} 59. Ra6 {[%clk 0:00:04]}  Rb2+ {[%clk 0:00:22]} 60. Kf1 {[%clk 0:00:04]}  Nf5 {[%clk 0:00:20]} 61. Bf2 {[%clk 0:00:04]}  Ke5 {[%clk 0:00:19]} 62. Ra5 {[%clk 0:00:04]}  Rb1+ {[%clk 0:00:17]} 63. Ke2 {[%clk 0:00:04]}  Rb2+ {[%clk 0:00:17]} 64. Kf1 {[%clk 0:00:04]}  Kf4 {[%clk 0:00:15]} 65. Rxc5 {[%clk 0:00:04]}  Rb1+ {[%clk 0:00:14]} 66. Ke2 {[%clk 0:00:04]}  Rb2+ {[%clk 0:00:14]} 67. Ke1 {[%clk 0:00:04]}  Rb1+ {[%clk 0:00:12]} 68. Ke2 {[%clk 0:00:04]}  Ng3+ {[%clk 0:00:08]} 69. Kd3 {[%clk 0:00:03]}  Rd1+ {[%clk 0:00:06]} 70. Kc2 {[%clk 0:00:03]}  Rf1 {[%clk 0:00:05]} 71. Rc4+ {[%clk 0:00:04]}  Kf5 {[%clk 0:00:05]} 72. Rc5+ {[%clk 0:00:03]}  Kg6 {[%clk 0:00:05]} 73. Bxg3 {[%clk 0:00:02]}  hxg3 {[%clk 0:00:06]} 74. Kd3 {[%clk 0:00:02]}  Rf2 {[%clk 0:00:06]} 75. Ke3 {[%clk 0:00:02]}  Rxg2 {[%clk 0:00:07]} 76. f4 {[%clk 0:00:02]}  Rh2 {[%clk 0:00:06]} 77. fxg5 {[%clk 0:00:02]}  fxg5 {[%clk 0:00:05]} 78. Kf3 {[%clk 0:00:02]}  Rxh3 {[%clk 0:00:05]} 79. Kg2 {[%clk 0:00:03]}  Rh4 {[%clk 0:00:04]} 80. Kxg3 {[%clk 0:00:03]}  Re4 {[%clk 0:00:05]} 81. Ra5 {[%clk 0:00:03]}  Kh5 {[%clk 0:00:05]} 82. Ra8 {[%clk 0:00:03]}  Re3+ {[%clk 0:00:05]} 83. Kg2 {[%clk 0:00:03]}  Rb3 {[%clk 0:00:06]} 84. Kf2 {[%clk 0:00:03]}  Kg4 {[%clk 0:00:06]} 85. Kg2 {[%clk 0:00:04]}  Rb2+ {[%clk 0:00:07]} 86. Kg1 {[%clk 0:00:04]}  Kg3 {[%clk 0:00:07]} 87. Ra3+ {[%clk 0:00:04]}  Kg4 {[%clk 0:00:06]} 88. Rc3 {[%clk 0:00:04]}  Kh4 {[%clk 0:00:06]} 89. Ra3 {[%clk 0:00:04]}  g4 {[%clk 0:00:06]} 90. Ra8 {[%clk 0:00:04]}  Kh3 {[%clk 0:00:06]} 91. Ra3+ {[%clk 0:00:02]}  g3 {[%clk 0:00:06]} 92. Kf1 {[%clk 0:00:02]}  Rg2 {[%clk 0:00:07]} 93. Ra4 {[%clk 0:00:02]}  Rh2 {[%clk 0:00:07]} 94. Ra8 {[%clk 0:00:02]}  Rh1+ {[%clk 0:00:07]} 95. Ke2 {[%clk 0:00:03]}  g2 {[%clk 0:00:07]} 96. Rh8+ {[%clk 0:00:03]}  Kg4 {[%clk 0:00:08]} 97. Rg8+ {[%clk 0:00:04]}  Kh3 {[%clk 0:00:07]} 98. Rh8+ {[%clk 0:00:04]}  Kg3 {[%clk 0:00:07]} 99. Rg8+ {[%clk 0:00:05]}  Kh2 {[%clk 0:00:08]} 100. Rh8+ {[%clk 0:00:05]}  Kg1 {[%clk 0:00:08]} 101. Rg8 {[%clk 0:00:05]}  Rh4 {[%clk 0:00:08]} 102. Kf3 {[%clk 0:00:05]}  Rh2 {[%clk 0:00:07]} 103. Ke2 {[%clk 0:00:06]}  Kh1 {[%clk 0:00:08]} 104. Kf2 {[%clk 0:00:05]}  g1=Q+ {[%clk 0:00:08]} 0-1


[Site "https://www.chess.com"]

[Event "Titled Tuesday Blitz July 26 Late 2022"]
[White "Reprintsev, Alexander"]
[Black "Martinez, Shawn"]
[WhiteFideId "14100541"]
[BlackFideId "2039770"]
[WhiteElo "2108"]
[BlackElo "2174"]
[Result "1-0"]
[Round "10"]
[TimeControl "180+1"]
[Date "2022.07.27"]
[WhiteClock "0:00:17"]
[BlackClock "0:00:14"]

1. e4 {[%clk 0:02:55]}  c5 {[%clk 0:02:57]} 2. b3 {[%clk 0:02:41]}  Nc6 {[%clk 0:02:49]} 3. Bb2 {[%clk 0:02:34]}  a6 {[%clk 0:02:45]} 4. Nf3 {[%clk 0:02:28]}  d6 {[%clk 0:02:36]} 5. d4 {[%clk 0:02:26]}  cxd4 {[%clk 0:02:36]} 6. Nxd4 {[%clk 0:02:27]}  Nf6 {[%clk 0:02:34]} 7. Nxc6 {[%clk 0:02:27]}  bxc6 {[%clk 0:02:34]} 8. e5 {[%clk 0:02:28]}  Nd7 {[%clk 0:02:30]} 9. exd6 {[%clk 0:02:27]}  exd6 {[%clk 0:02:30]} 10. Qf3 {[%clk 0:02:22]}  d5 {[%clk 0:02:25]} 11. Bd3 {[%clk 0:01:57]}  Bb4+ {[%clk 0:02:22]} 12. Nd2 {[%clk 0:01:26]}  Qg5 {[%clk 0:01:55]} 13. O-O-O {[%clk 0:01:22]}  O-O {[%clk 0:01:47]} 14. h4 {[%clk 0:01:17]}  Qd8 {[%clk 0:01:32]} 15. Rhe1 {[%clk 0:00:58]}  Re8 {[%clk 0:01:20]} 16. h5 {[%clk 0:00:24]}  Nf8 {[%clk 0:01:04]} 17. g4 {[%clk 0:00:20]}  Rxe1 {[%clk 0:00:56]} 18. Rxe1 {[%clk 0:00:20]}  Qg5 {[%clk 0:00:56]} 19. c3 {[%clk 0:00:19]}  Bd6 {[%clk 0:00:47]} 20. Kc2 {[%clk 0:00:19]}  Bxg4 {[%clk 0:00:46]} 21. Qg2 {[%clk 0:00:18]}  Qxh5 {[%clk 0:00:45]} 22. Rh1 {[%clk 0:00:17]}  Qg5 {[%clk 0:00:29]} 23. f3 {[%clk 0:00:17]}  f5 {[%clk 0:00:25]} 24. fxg4 {[%clk 0:00:17]}  fxg4 {[%clk 0:00:25]} 25. Nf3 {[%clk 0:00:15]}  Qf4 {[%clk 0:00:23]} 26. Nd4 {[%clk 0:00:15]}  Re8 {[%clk 0:00:19]} 27. b4 {[%clk 0:00:14]}  Be5 {[%clk 0:00:17]} 28. Nxc6 {[%clk 0:00:13]}  g6 {[%clk 0:00:15]} 29. Qxd5+ {[%clk 0:00:13]}  Kg7 {[%clk 0:00:13]} 30. Nxe5 {[%clk 0:00:14]}  Rxe5 {[%clk 0:00:12]} 31. c4 {[%clk 0:00:14]}  Qf2+ {[%clk 0:00:09]} 32. Kb3 {[%clk 0:00:13]}  Nd7 {[%clk 0:00:07]} 33. Bxe5+ {[%clk 0:00:12]}  Nxe5 {[%clk 0:00:07]} 34. Qxe5+ {[%clk 0:00:13]}  Kg8 {[%clk 0:00:07]} 35. Qe6+ {[%clk 0:00:11]}  Kg7 {[%clk 0:00:07]} 36. Qe7+ {[%clk 0:00:12]}  Kg8 {[%clk 0:00:06]} 37. Qxh7+ {[%clk 0:00:12]}  Kf8 {[%clk 0:00:07]} 38. Rf1 {[%clk 0:00:12]}  g3 {[%clk 0:00:06]} 39. Rxf2+ {[%clk 0:00:09]}  gxf2 {[%clk 0:00:07]} 40. Bf1 {[%clk 0:00:09]}  g5 {[%clk 0:00:07]} 41. Qg6 {[%clk 0:00:10]}  g4 {[%clk 0:00:07]} 42. Qxg4 {[%clk 0:00:10]}  Ke7 {[%clk 0:00:08]} 43. Qf3 {[%clk 0:00:11]}  Ke6 {[%clk 0:00:09]} 44. Qxf2 {[%clk 0:00:12]}  Ke5 {[%clk 0:00:09]} 45. Qd2 {[%clk 0:00:12]}  Ke4 {[%clk 0:00:10]} 46. Bd3+ {[%clk 0:00:13]}  Kf3 {[%clk 0:00:11]} 47. Bc2 {[%clk 0:00:13]}  Kg4 {[%clk 0:00:11]} 48. Qf2 {[%clk 0:00:13]}  a5 {[%clk 0:00:11]} 49. bxa5 {[%clk 0:00:14]}  Kg5 {[%clk 0:00:11]} 50. Kc3 {[%clk 0:00:14]}  Kg4 {[%clk 0:00:12]} 51. Kd4 {[%clk 0:00:15]}  Kh3 {[%clk 0:00:13]} 52. Ke5 {[%clk 0:00:16]}  Kg4 {[%clk 0:00:14]} 53. Qg2+ {[%clk 0:00:15]}  Kh5 {[%clk 0:00:13]} 54. Kf5 {[%clk 0:00:16]}  Kh6 {[%clk 0:00:14]} 55. Qg6# {[%clk 0:00:17]} 1-0


[Site "https://www.chess.com"]

[Event "Titled Tuesday Blitz July 26 Late 2022"]
[White "Rosen, Eric"]
[Black "Petrovic, Aleksa"]
[WhiteFideId "2032562"]
[BlackFideId "967629"]
[WhiteElo "2362"]
[BlackElo "2185"]
[Result "0-1"]
[Round "10"]
[TimeControl "180+1"]
[Date "2022.07.27"]
[WhiteClock "0:00:01"]
[BlackClock "0:00:24"]

1. d4 {[%clk 0:03:00]}  Nf6 {[%clk 0:02:56]} 2. Bf4 {[%clk 0:03:00]}  e6 {[%clk 0:02:56]} 3. e3 {[%clk 0:03:00]}  c5 {[%clk 0:02:56]} 4. Nf3 {[%clk 0:03:00]}  Qb6 {[%clk 0:02:56]} 5. Na3 {[%clk 0:03:00]}  cxd4 {[%clk 0:02:55]} 6. Nb5 {[%clk 0:02:51]}  Nd5 {[%clk 0:02:54]} 7. Qxd4 {[%clk 0:02:46]}  Qxd4 {[%clk 0:02:54]} 8. Nfxd4 {[%clk 0:02:44]}  Nxf4 {[%clk 0:02:54]} 9. exf4 {[%clk 0:02:34]}  Bb4+ {[%clk 0:02:53]} 10. c3 {[%clk 0:02:34]}  Ba5 {[%clk 0:02:52]} 11. Nd6+ {[%clk 0:02:10]}  Ke7 {[%clk 0:02:52]} 12. Nxc8+ {[%clk 0:02:05]}  Rxc8 {[%clk 0:02:53]} 13. O-O-O {[%clk 0:01:48]}  a6 {[%clk 0:02:48]} 14. Bd3 {[%clk 0:01:46]}  Nc6 {[%clk 0:02:44]} 15. Nxc6+ {[%clk 0:01:16]}  Rxc6 {[%clk 0:02:44]} 16. Rhe1 {[%clk 0:01:16]}  g6 {[%clk 0:02:34]} 17. Be4 {[%clk 0:01:13]}  Rc7 {[%clk 0:02:29]} 18. Rd3 {[%clk 0:01:12]}  Rac8 {[%clk 0:02:21]} 19. g4 {[%clk 0:00:57]}  b5 {[%clk 0:02:16]} 20. a3 {[%clk 0:00:26]}  Bb6 {[%clk 0:02:13]} 21. Rh3 {[%clk 0:00:26]}  Bxf2 {[%clk 0:02:08]} 22. Re2 {[%clk 0:00:26]}  Bb6 {[%clk 0:01:35]} 23. Rxh7 {[%clk 0:00:26]}  Rg8 {[%clk 0:01:34]} 24. h4 {[%clk 0:00:25]}  Rcc8 {[%clk 0:01:26]} 25. Kc2 {[%clk 0:00:24]}  Rh8 {[%clk 0:01:24]} 26. Bxg6 {[%clk 0:00:13]}  Rxh7 {[%clk 0:01:23]} 27. Bxh7 {[%clk 0:00:14]}  Rh8 {[%clk 0:01:23]} 28. Bd3 {[%clk 0:00:15]}  Rxh4 {[%clk 0:01:22]} 29. Rg2 {[%clk 0:00:15]}  Be3 {[%clk 0:01:18]} 30. f5 {[%clk 0:00:15]}  Kf6 {[%clk 0:01:18]} 31. Kb3 {[%clk 0:00:13]}  Kg5 {[%clk 0:01:16]} 32. Be2 {[%clk 0:00:11]}  d5 {[%clk 0:01:12]} 33. a4 {[%clk 0:00:11]}  bxa4+ {[%clk 0:01:11]} 34. Ka3 {[%clk 0:00:08]}  Bc5+ {[%clk 0:01:10]} 35. Kxa4 {[%clk 0:00:06]}  exf5 {[%clk 0:01:10]} 36. b4 {[%clk 0:00:06]}  Bd6 {[%clk 0:00:34]} 37. gxf5+ {[%clk 0:00:07]}  Kxf5 {[%clk 0:00:32]} 38. Bxa6 {[%clk 0:00:05]}  d4 {[%clk 0:00:31]} 39. c4 {[%clk 0:00:06]}  d3 {[%clk 0:00:29]} 40. Kb5 {[%clk 0:00:03]}  Bf4 {[%clk 0:00:27]} 41. Rg1 {[%clk 0:00:02]}  d2 {[%clk 0:00:27]} 42. Rd1 {[%clk 0:00:02]}  Ke4 {[%clk 0:00:26]} 43. Bc8 {[%clk 0:00:01]}  Kd3 {[%clk 0:00:24]} 0-1


[Site "https://www.chess.com"]